bitfinex-derivatives/quotes_BTCF0:USTF0_20260119
["timestamp","ask_amount","ask_price","bid_price","bid_amount"]
[1768862806464,0.00016459,92803.0,92793.0,0.010783]
[1768862806665,0.00016459,92803.0,92789.0,0.00237098]
[1768862806962,0.1813911,92800.0,92789.0,0.00237098]
[1768862807163,0.1813911,92800.0,92794.0,0.010783]
[1768862807461,0.00016459,92803.0,92789.0,0.00237098]
[1768862807850,0.00016459,92803.0,92794.0,0.010783]
[1768862808050,0.00016459,92803.0,92789.0,0.00237098]
[1768862809566,0.00016459,92803.0,92794.0,0.010783]
[1768862809765,0.00016459,92803.0,92789.0,0.00237098]
[1768862809965,0.00016459,92803.0,92794.0,0.010783]
[1768862810165,0.00016459,92803.0,92789.0,0.00237098]
[1768862810555,0.1813911,92800.0,92789.0,0.00237098]
[1768862811466,0.1813911,92800.0,92794.0,0.010783]
[1768862811668,0.00016459,92803.0,92789.0,0.00237098]
[1768862812476,0.18186007,92804.0,92789.0,0.00237098]
[1768862812656,0.1813911,92800.0,92789.0,0.00237098]
[1768862813266,0.00046897,92804.0,92792.0,0.010783]
[1768862813466,0.09132985,92801.0,92792.0,0.010783]
[1768862813666,0.00069359,92800.0,92792.0,0.010783]
[1768862813964,0.09063626,92801.0,92792.0,0.010783]
[1768862814166,0.1813911,92802.0,92792.0,0.010783]
[1768862814366,0.1813911,92802.0,92794.0,0.010783]
[1768862816665,0.1813911,92802.0,92789.0,0.00237098]
[1768862817865,0.00069359,92804.0,92795.0,0.010783]
[1768862818365,0.00069359,92804.0,92794.0,0.010783]
[1768862819366,0.18208469,92804.0,92794.0,0.010783]
[1768862819556,0.00061746,92803.0,92794.0,0.010783]
[1768862819863,0.00061746,92797.0,92789.0,0.00237098]
[1768862820163,0.18200856,92799.0,92789.0,0.01315498]
[1768862820461,0.1813911,92799.0,92789.0,0.01315498]
[1768862821158,0.00053548,92798.0,92789.0,0.01315498]
[1768862821863,0.1813911,92799.0,92789.0,0.01315498]
[1768862823960,0.1813911,92799.0,92789.0,0.00237098]
[1768862824160,0.18210746,92799.0,92786.0,0.010784]
[1768862825066,0.00011687,92798.0,92786.0,0.010784]
[1768862833079,0.1813911,92796.0,92784.0,0.0023711]
[1768862833376,0.09075313,92798.0,92784.0,0.0023711]
[1768862833580,0.1813911,92794.0,92784.0,0.0023711]
[1768862834471,0.00011687,92798.0,92784.0,0.0023711]
[1768862835679,0.09176602,92798.0,92784.0,0.0023711]
[1768862835976,0.09063626,92782.0,92777.0,4e-05]
[1768862836168,0.09063626,92781.0,92764.0,0.00237161]
[1768862836367,0.1813911,92774.0,92764.0,0.00237161]
[1768862836871,0.1813911,92774.0,92765.0,4.06e-05]
[1768862837267,0.1813911,92774.0,92764.0,0.00237161]
[1768862837680,0.00016164,92778.0,92764.0,0.01315761]
[1768862837984,0.1813911,92774.0,92764.0,0.01315761]
[1768862839979,0.00055177,92778.0,92764.0,0.01315761]
[1768862840179,0.1813911,92774.0,92764.0,0.01315761]
[1768862840681,0.09063626,92804.0,92777.0,0.09689508]
[1768862840882,0.1813911,92820.0,92795.0,0.09689508]
[1768862841078,0.09704,92821.0,92805.0,0.0090727]
[1768862841277,0.09704,92826.0,92816.0,0.010781]
[1768862841473,0.2784311,92826.0,92816.0,0.010781]
[1768862841674,0.09758389,92831.0,92809.0,0.09689508]
[1768862841978,0.1813911,92830.0,92819.0,0.01078]
[1768862842177,0.18767626,92833.0,92821.0,0.01078]
[1768862842376,0.00361182,92829.0,92821.0,0.01078]
[1768862842576,0.00236996,92829.0,92821.0,0.01078]
[1768862842776,0.1813911,92831.0,92828.0,0.010779]
[1768862842777,6e-08,92831.0,92828.0,0.010779]
[1768862842985,0.18263296,92838.0,92826.0,0.010779]
[1768862843493,0.00124186,92837.0,92826.0,0.010779]
[1768862844083,0.0969805,92838.0,92819.0,0.00907459]
[1768862844284,0.0969805,92838.0,92826.0,0.010779]
[1768862846181,0.00243652,92837.0,92822.0,0.01078]
[1768862846490,0.1077585,92838.0,92822.0,0.01078]
[1768862847193,0.010778,92838.0,92822.0,0.01078]
[1768862847886,0.1813911,92840.0,92826.0,0.010779]
[1768862848895,0.2783716,92840.0,92823.0,0.01078]
[1768862849081,0.2891496,92840.0,92821.0,0.00907459]
[1768862849283,0.1813911,92840.0,92823.0,0.09502188]
[1768862850090,0.1813911,92840.0,92823.0,0.0926509]
[1768862850595,0.1813911,92840.0,92823.0,0.1034309]
[1768862851294,0.1921691,92840.0,92823.0,0.1034309]
[1768862851684,0.1921691,92840.0,92812.0,0.00907459]
[1768862851685,0.0969805,92833.0,92812.0,0.00907459]
[1768862851892,0.00471435,92815.0,92802.0,0.09704]
[1768862852087,0.01549535,92815.0,92802.0,0.09704]
[1768862852696,0.010781,92811.0,92802.0,0.09704]
[1768862852991,0.0969805,92807.0,92792.0,0.09704]
[1768862853188,0.010782,92804.0,92792.0,0.09704]
[1768862853696,0.010782,92802.0,92794.0,0.09703953]
[1768862853884,0.010782,92802.0,92796.0,0.09703953]
[1768862854087,0.010782,92802.0,92795.0,0.09703953]
[1768862854286,0.00471448,92803.0,92796.0,0.09703953]
[1768862854488,0.00471448,92803.0,92793.0,0.09703953]
[1768862854793,0.10169438,92798.0,92779.0,0.09704]
[1768862854995,0.00471388,92796.0,92779.0,0.09704]
[1768862855296,0.010783,92794.0,92779.0,0.09704]
[1768862856704,0.0969805,92797.0,92779.0,0.09704]
[1768862857199,0.010783,92793.0,92779.0,0.09704]
[1768862859086,0.010783,92793.0,92776.0,0.10611459]
[1768862860096,0.010784,92787.0,92776.0,0.09704]
[1768862861607,0.010784,92787.0,92776.0,0.10659513]
[1768862861804,0.1921751,92790.0,92776.0,0.10659513]
[1768862862297,0.1921751,92790.0,92776.0,0.09704]
[1768862863501,0.010784,92788.0,92776.0,0.09704]
[1768862868694,0.010784,92786.0,92772.0,0.00955513]
[1768862868900,0.010784,92786.0,92773.0,0.09704]
[1768862869695,0.00450509,92782.0,92766.0,0.010786]
[1768862869889,0.0902586,92783.0,92766.0,0.010786]
[1768862870288,0.01528909,92786.0,92766.0,0.02034113]
[1768862870490,0.00450509,92785.0,92766.0,0.02034113]
[1768862870701,0.010784,92786.0,92767.0,0.00955513]
[1768862870884,0.010784,92786.0,92768.0,0.00955513]
[1768862871102,0.010784,92786.0,92769.0,0.00955513]
[1768862875193,0.010784,92786.0,92769.0,0.00939585]
[1768862875699,0.010784,92786.0,92770.0,0.00939585]
[1768862875889,0.010784,92786.0,92769.0,0.09714742]
[1768862878096,0.010784,92786.0,92769.0,0.10654327]
[1768862878297,0.010784,92784.0,92769.0,0.10654327]
[1768862878595,0.010784,92784.0,92770.0,0.09714742]
[1768862878803,0.010784,92784.0,92767.0,0.00939585]
[1768862878993,0.010784,92784.0,92769.0,0.00939585]
[1768862879594,0.010784,92784.0,92770.0,0.00939585]
[1768862879805,0.010784,92788.0,92772.0,0.09714742]
[1768862880001,0.09508785,92800.0,92779.0,0.00939585]
[1768862880302,0.010783,92795.0,92784.0,0.00939585]
[1768862880599,0.010783,92795.0,92783.0,0.09714742]
[1768862880800,0.010783,92795.0,92771.0,0.00939585]
[1768862881006,0.09704,92797.0,92782.0,0.00939585]
[1768862881704,0.107823,92797.0,92782.0,0.00939585]
[1768862882297,0.107823,92797.0,92783.0,0.00939585]
[1768862882702,0.010782,92808.0,92794.0,0.00939585]
[1768862882906,0.010782,92808.0,92765.0,0.07730213]
[1768862882907,0.39252785,92825.0,92804.0,0.00939585]
[1768862883103,0.01078,92823.0,92807.0,0.00939585]
[1768862883306,0.01078,92819.0,92807.0,0.00939585]
[1768862883607,0.01078,92819.0,92803.0,0.010782]
[1768862884009,0.01078,92820.0,92802.0,0.010782]
[1768862885398,0.09974561,92821.0,92804.0,0.010782]
[1768862885720,0.01078,92823.0,92804.0,0.010782]
[1768862885721,0.01078,92823.0,92805.0,0.00702526]
[1768862885918,0.01078,92823.0,92804.0,0.10792942]
[1768862885919,0.01078,92823.0,92806.0,0.010782]
[1768862887925,0.01078,92823.0,92806.0,0.02017785]
[1768862888324,0.01078,92821.0,92803.0,0.02017785]
[1768862888627,0.01078,92821.0,92805.0,0.02017785]
[1768862888820,0.01078,92821.0,92805.0,0.00939585]
[1768862889219,0.01078,92819.0,92805.0,0.00939585]
[1768862889530,0.01078,92819.0,92806.0,0.00939585]
[1768862893934,0.01078,92822.0,92806.0,0.00939585]
[1768862894524,0.01078,92820.0,92806.0,0.00939585]
[1768862894828,0.10433497,92825.0,92806.0,0.00939585]
[1768862895234,0.10433497,92825.0,92805.0,0.09714742]
[1768862895235,0.09704,92825.0,92808.0,0.00939585]
[1768862895435,0.01078,92820.0,92808.0,0.00939585]
[1768862895730,0.09704,92825.0,92808.0,0.00939585]
[1768862896328,0.01078,92824.0,92808.0,0.10792842]
[1768862896518,0.00757917,92827.0,92808.0,0.09714742]
[1768862896724,0.00757917,92831.0,92810.0,0.00939585]
[1768862896924,0.00757917,92831.0,92811.0,0.00939585]
[1768862897324,0.00757917,92831.0,92811.0,0.02017685]
[1768862897525,0.010779,92828.0,92811.0,0.00939585]
[1768862897925,0.010779,92828.0,92812.0,0.02017685]
[1768862898123,0.010779,92828.0,92813.0,0.00939585]
[1768862898431,0.19212785,92833.0,92814.0,0.00939585]
[1768862898635,0.09704,92833.0,92815.0,0.00939585]
[1768862898933,0.10469629,92833.0,92814.0,0.09714742]
[1768862899329,0.09508785,92837.0,92817.0,0.10654327]
[1768862899635,0.010778,92835.0,92821.0,0.00939585]
[1768862899836,0.010778,92838.0,92821.0,0.00939585]
[1768862902527,0.010778,92838.0,92800.0,0.18144058]
[1768862902528,0.00801757,92834.0,92815.0,0.00939585]
[1768862902737,0.00801757,92834.0,92782.0,0.09646539]
[1768862902738,0.00801757,92828.0,92811.0,0.09704]
[1768862902934,0.01078,92822.0,92811.0,0.09704]
[1768862903134,0.00801757,92823.0,92808.0,0.09704]
[1768862903338,0.010778,92835.0,92791.0,0.09704]
[1768862903339,0.010782,92807.0,92791.0,0.09704]
[1768862903525,0.09999665,92803.0,92791.0,0.09704]
[1768862903731,0.00801757,92799.0,92791.0,0.09704]
[1768862904043,0.00801757,92799.0,92784.0,0.0994111]
[1768862904230,0.00801757,92799.0,92785.0,0.010784]
[1768862904433,0.09197908,92800.0,92785.0,0.010784]
[1768862904631,0.09197908,92800.0,92784.0,0.0994111]
[1768862904632,0.0080271,92804.0,92787.0,0.010784]
[1768862905138,0.010782,92805.0,92787.0,0.010784]
[1768862906143,0.010782,92805.0,92788.0,0.00922167]
[1768862906443,0.010782,92805.0,92790.0,0.00922167]
[1768862906740,0.010782,92805.0,92792.0,0.00922167]
[1768862907340,0.010781,92810.0,92792.0,0.00922167]
[1768862909738,0.010781,92808.0,92792.0,0.00922167]
[1768862911546,0.010782,92806.0,92792.0,0.00922167]
[1768862918156,0.010782,92804.0,92792.0,0.00922167]
[1768862918552,0.010782,92806.0,92792.0,0.00922167]
[1768862918850,0.010782,92806.0,92794.0,0.00922167]
[1768862922159,0.01315147,92809.0,92794.0,0.00922167]
[1768862924058,0.01315147,92809.0,92795.0,0.00923218]
[1768862924661,0.01315147,92809.0,92792.0,0.010783]
[1768862924853,0.010782,92807.0,92792.0,0.02001518]
[1768862925054,0.010782,92807.0,92793.0,0.00923218]
[1768862926362,0.010782,92807.0,92792.0,0.010783]
[1768862927061,0.010782,92807.0,92792.0,0.02001518]
[1768862929656,0.010782,92807.0,92792.0,0.010783]
[1768862930267,0.010782,92807.0,92792.0,0.02001518]
[1768862930768,0.010782,92807.0,92792.0,0.010783]
[1768862931865,0.010782,92807.0,92795.0,0.00923218]
[1768862934558,0.010782,92807.0,92793.0,0.010783]
[1768862936067,0.010782,92807.0,92793.0,0.02056619]
[1768862936257,0.010782,92807.0,92794.0,0.00978319]
[1768862936459,0.010782,92807.0,92793.0,0.010783]
[1768862936659,0.010782,92807.0,92790.0,0.02056619]
[1768862936862,0.010782,92807.0,92791.0,0.02056619]
[1768862937162,0.010782,92807.0,92792.0,0.00978319]
[1768862937464,0.00237047,92809.0,92792.0,0.00978319]
[1768862938573,0.010782,92806.0,92792.0,0.00978319]
[1768862938972,0.010782,92806.0,92792.0,0.02056619]
[1768862939270,0.010782,92806.0,92792.0,0.00978319]
[1768862940466,0.010782,92806.0,92792.0,0.02056619]
[1768862940974,0.010782,92806.0,92792.0,0.00978319]
[1768862941881,0.00237047,92809.0,92792.0,0.00978319]
[1768862942064,0.00237047,92809.0,92794.0,0.00978319]
[1768862942261,0.00791625,92822.0,92801.0,0.00978319]
[1768862942467,0.02364247,92821.0,92811.0,0.010781]
[1768862942766,0.00236996,92829.0,92813.0,0.00978319]
[1768862942962,0.00236996,92829.0,92818.0,0.00978319]
[1768862943163,0.00236996,92829.0,92821.0,0.01078]
[1768862943558,0.00236996,92829.0,92818.0,0.00978319]
[1768862943763,0.00236996,92829.0,92812.0,0.10563553]
[1768862943958,0.00236996,92829.0,92816.0,0.00978319]
[1768862944166,0.00236996,92829.0,92819.0,0.02056319]
[1768862944578,0.00236996,92829.0,92822.0,0.01078]
[1768862944880,0.09532521,92837.0,92822.0,0.01078]
[1768862945080,0.10318559,92837.0,92824.0,0.010779]
[1768862945480,0.27838382,92850.0,92826.0,0.00978319]
[1768862945777,0.00786038,92848.0,92830.0,0.010779]
[1768862945982,0.10847166,92849.0,92830.0,0.010779]
[1768862945983,0.00786038,92846.0,92830.0,0.010779]
[1768862949083,0.10847166,92849.0,92832.0,0.010779]
[1768862950293,0.00778058,92867.0,92847.0,0.00978319]
[1768862950491,0.04236906,92864.0,92848.0,0.010777]
[1768862950685,0.04236906,92864.0,92850.0,0.010776]
[1768862950991,0.00236906,92864.0,92847.0,0.00978319]
[1768862951795,0.00236906,92864.0,92853.0,0.010776]
[1768862953389,0.00236894,92869.0,92857.0,0.010776]
[1768862953596,0.00236894,92869.0,92858.0,0.00978319]
[1768862954192,0.00236894,92869.0,92857.0,0.10662834]
[1768862954991,0.00236894,92869.0,92857.0,0.010776]
[1768862957898,0.010774,92875.0,92859.0,0.00978319]
[1768862958090,0.040774,92875.0,92859.0,0.00978319]
[1768862958494,0.040774,92875.0,92858.0,0.09585234]
[1768862958896,0.05042708,92875.0,92857.0,0.010776]
[1768862959502,0.05042708,92875.0,92859.0,0.010775]
[1768862959899,0.040774,92875.0,92860.0,0.00978319]
[1768862960101,0.010774,92877.0,92864.0,0.00978319]
[1768862960400,0.04,92877.0,92862.0,0.010775]
[1768862961389,0.050773,92877.0,92861.0,0.00978319]
[1768862961901,0.050773,92877.0,92860.0,0.18134382]
[1768862962196,0.06042608,92877.0,92860.0,0.18134382]
[1768862962402,0.06042608,92877.0,92859.0,0.010775]
[1768862963103,0.010774,92874.0,92859.0,0.010775]
[1768862963303,0.010774,92877.0,92861.0,0.010775]
[1768862963602,0.040774,92877.0,92861.0,0.010775]
[1768862964707,0.040774,92877.0,92863.0,0.010775]
[1768862964903,0.040774,92877.0,92862.0,0.010775]
[1768862965309,0.03,92877.0,92860.0,0.19105822]
[1768862965700,0.040773,92877.0,92863.0,0.010775]
[1768862966005,0.040773,92877.0,92862.0,0.010775]
[1768862966006,0.010774,92876.0,92862.0,0.010775]
[1768862966505,0.010774,92876.0,92861.0,0.010775]
[1768862966998,0.010774,92874.0,92861.0,0.010775]
[1768862967490,0.10461227,92879.0,92860.0,0.19105822]
[1768862967491,0.10461227,92879.0,92860.0,0.20183322]
[1768862967695,0.13461227,92879.0,92860.0,0.20183322]
[1768862967897,0.13461227,92879.0,92860.0,0.19105822]
[1768862968602,0.13461227,92879.0,92856.0,0.010776]
[1768862968603,0.10806306,92874.0,92856.0,0.010776]
[1768862968905,0.18134382,92880.0,92853.0,0.097]
[1768862968906,0.00928706,92870.0,92853.0,0.097]
[1768862969207,0.02006106,92870.0,92856.0,0.010776]
[1768862969507,0.00928706,92870.0,92856.0,0.010776]
[1768862969803,0.10955,92871.0,92856.0,0.010776]
[1768862970398,0.10955,92871.0,92857.0,0.097]
[1768862971500,0.010774,92869.0,92857.0,0.097]
[1768862971706,0.010774,92869.0,92857.0,0.09463055]
[1768862975103,0.00928706,92876.0,92857.0,0.09463055]
[1768862975298,0.010774,92869.0,92857.0,0.09463055]
[1768862975494,0.00928706,92875.0,92857.0,0.09463055]
[1768862975698,0.010774,92869.0,92857.0,0.09463055]
[1768862977007,0.010775,92867.0,92857.0,0.09463055]
[1768862977204,0.010774,92873.0,92855.0,0.0097144]
[1768862977409,0.010775,92865.0,92855.0,0.0097144]
[1768862979112,0.00928706,92875.0,92855.0,0.0097144]
[1768862979113,0.010774,92869.0,92855.0,0.0097144]
[1768862982612,0.010774,92869.0,92855.0,0.0204904]
[1768862982814,0.010774,92869.0,92855.0,0.0097144]
[1768862984617,0.00928706,92875.0,92855.0,0.0097144]
[1768862984819,0.02334397,92874.0,92855.0,0.0097144]
[1768862985117,0.00928706,92875.0,92855.0,0.0097144]
[1768862985319,0.02334404,92874.0,92855.0,0.0097144]
[1768862985518,0.010774,92869.0,92855.0,0.0097144]
[1768862986119,0.010775,92867.0,92855.0,0.0097144]
[1768862986319,0.00928706,92875.0,92855.0,0.0097144]
[1768862986520,0.02334477,92874.0,92855.0,0.0097144]
[1768862986720,0.00928706,92875.0,92855.0,0.0097144]
[1768862986922,0.02334477,92874.0,92855.0,0.0097144]
[1768862987114,0.00928706,92875.0,92855.0,0.0097144]
[1768862987312,0.010774,92869.0,92855.0,0.0097144]
[1768862988222,0.00928706,92875.0,92855.0,0.0097144]
[1768862988422,0.03293116,92874.0,92855.0,0.0097144]
[1768862988625,0.00958617,92874.0,92855.0,0.0097144]
[1768862988825,0.010775,92868.0,92855.0,0.0097144]
[1768862989725,0.010775,92868.0,92856.0,0.00915979]
[1768862990427,0.010774,92869.0,92856.0,0.00915979]
[1768862990730,0.1083088,92876.0,92856.0,0.00915979]
[1768862990915,0.02334415,92875.0,92856.0,0.00915979]
[1768862991111,0.02334415,92874.0,92856.0,0.00915979]
[1768862991325,0.1083088,92876.0,92856.0,0.00915979]
[1768862991625,0.02334419,92875.0,92856.0,0.00915979]
[1768862991818,0.02334419,92874.0,92856.0,0.00915979]
[1768862992018,0.1083088,92876.0,92856.0,0.00915979]
[1768862992325,0.02334423,92875.0,92857.0,0.09696]
[1768862992626,0.02334423,92874.0,92857.0,0.09696]
[1768862992826,0.1083088,92876.0,92857.0,0.09696]
[1768862993028,0.010775,92867.0,92857.0,0.09696]
[1768862994824,0.010775,92863.0,92857.0,0.09696]
[1768862995026,0.010775,92866.0,92857.0,0.09696]
[1768862995429,0.00948428,92870.0,92857.0,0.09696]
[1768862996123,0.010774,92875.0,92857.0,0.09696]
[1768862996124,0.00948428,92867.0,92857.0,0.09696]
[1768862996430,0.00948428,92867.0,92849.0,0.010777]
[1768862996431,0.00948428,92857.0,92844.0,0.00236957]
[1768862996622,0.00948428,92856.0,92844.0,0.00236957]
[1768862996821,0.010777,92850.0,92837.0,0.09696]
[1768862997127,0.010777,92850.0,92835.0,0.09696]
[1768862997634,0.010776,92851.0,92836.0,0.010778]
[1768862997834,0.010776,92851.0,92835.0,0.107738]
[1768862998828,0.00948428,92851.0,92835.0,0.09696]
[1768862999419,0.00948428,92850.0,92835.0,0.09696]
[1768863000429,0.010777,92847.0,92835.0,0.09696]
[1768863001635,0.010777,92847.0,92833.0,0.00952869]
[1768863001832,0.00236894,92869.0,92844.0,0.010777]
[1768863002033,0.010775,92860.0,92849.0,0.00952869]
[1768863002335,0.097,92865.0,92853.0,0.00952869]
[1768863003139,0.010775,92862.0,92853.0,0.00952869]
[1768863003641,0.010775,92862.0,92849.0,0.00952869]
[1768863003939,0.010775,92862.0,92850.0,0.00952869]
[1768863006041,0.010775,92860.0,92850.0,0.00952869]
[1768863007840,0.010775,92860.0,92849.0,0.09834073]
[1768863008033,0.010775,92863.0,92849.0,0.09834073]
[1768863008226,0.010775,92863.0,92850.0,0.00952869]
[1768863008427,0.010775,92863.0,92851.0,0.00952869]
[1768863016240,0.010775,92862.0,92851.0,0.00952869]
[1768863018935,0.097,92867.0,92853.0,0.00952869]
[1768863019134,0.010775,92863.0,92847.0,0.02030569]
[1768863019633,0.010775,92863.0,92848.0,0.00952869]
[1768863019828,0.010775,92864.0,92848.0,0.02030569]
[1768863020040,0.097,92867.0,92849.0,0.10786942]
[1768863020238,0.097,92867.0,92850.0,0.00952869]
[1768863020440,0.097,92867.0,92849.0,0.09834073]
[1768863020641,0.097,92867.0,92849.0,0.10786942]
[1768863021646,0.010775,92862.0,92849.0,0.10786942]
[1768863022329,0.097,92867.0,92849.0,0.10786942]
[1768863022330,0.010775,92865.0,92849.0,0.10786942]
[1768863022832,0.010775,92863.0,92849.0,0.10786942]
[1768863023634,0.010775,92865.0,92851.0,0.1034084]
[1768863023946,0.010775,92865.0,92852.0,0.00924269]
[1768863028639,0.010775,92865.0,92851.0,0.09416571]
[1768863028938,0.010775,92865.0,92850.0,0.010777]
[1768863029338,0.107775,92867.0,92846.0,0.00924269]
[1768863029638,0.107775,92867.0,92852.0,0.010776]
[1768863029838,0.107775,92867.0,92852.0,0.02001869]
[1768863030031,0.097,92867.0,92854.0,0.010776]
[1768863030236,0.097,92867.0,92852.0,0.00924269]
[1768863031047,0.097,92867.0,92852.0,0.02001869]
[1768863031549,0.097,92867.0,92853.0,0.010776]
[1768863032046,0.097,92867.0,92854.0,0.02001869]
[1768863032747,0.097,92867.0,92854.0,0.00924269]
[1768863033049,0.010774,92875.0,92860.0,0.00924269]
[1768863033248,0.010774,92875.0,92859.0,0.10494071]
[1768863033249,0.010774,92875.0,92863.0,0.1034084]
[1768863033433,0.097,92883.0,92866.0,0.00924269]
[1768863033743,0.02276503,92882.0,92865.0,0.00924269]
[1768863034045,0.02276503,92881.0,92865.0,0.00924269]
[1768863034253,0.03,92881.0,92865.0,0.00924269]
[1768863034547,0.040773,92881.0,92865.0,0.00924269]
[1768863035334,0.040773,92881.0,92866.0,0.010775]
[1768863035534,0.040773,92881.0,92865.0,0.00924269]
[1768863035741,0.00997935,92880.0,92860.0,0.00924269]
[1768863035945,0.00997935,92879.0,92860.0,0.00924269]
[1768863036247,0.03,92879.0,92861.0,0.00924269]
[1768863037438,0.03,92879.0,92864.0,0.010775]
[1768863038051,0.03,92879.0,92861.0,0.00924269]
[1768863038245,0.010773,92881.0,92865.0,0.00924269]
[1768863038452,0.040773,92881.0,92866.0,0.00924269]
[1768863038654,0.010774,92872.0,92862.0,0.00924269]
[1768863039352,0.010774,92872.0,92860.0,0.09416571]
[1768863041350,0.010774,92870.0,92860.0,0.09416571]
[1768863043545,0.010774,92872.0,92861.0,0.00909503]
[1768863044849,0.010774,92872.0,92860.0,0.09416571]
[1768863045354,0.010774,92871.0,92860.0,0.09416571]
[1768863045553,0.010774,92871.0,92858.0,0.00909503]
[1768863046848,0.010774,92871.0,92856.0,0.01987103]
[1768863047041,0.010774,92871.0,92857.0,0.00909503]
[1768863047855,0.010774,92871.0,92856.0,0.09859634]
[1768863048343,0.010774,92871.0,92856.0,0.10937234]
[1768863048543,0.010774,92871.0,92856.0,0.10769137]
[1768863049651,0.010774,92871.0,92858.0,0.00909503]
[1768863050046,0.010774,92871.0,92861.0,0.00909503]
[1768863050238,0.010773,92881.0,92861.0,0.00909503]
[1768863050239,0.010774,92874.0,92861.0,0.00909503]
[1768863051048,0.00990812,92881.0,92861.0,0.00909503]
[1768863051049,0.010774,92873.0,92861.0,0.00909503]
[1768863051542,0.010774,92873.0,92860.0,0.09859634]
[1768863051743,0.00990812,92879.0,92860.0,0.10769137]
[1768863051948,0.010774,92874.0,92860.0,0.10769137]
[1768863052858,0.010774,92874.0,92860.0,0.28875262]
[1768863053052,0.010774,92877.0,92860.0,0.28875262]
[1768863053653,0.010774,92874.0,92860.0,0.10769137]
[1768863053847,0.010774,92874.0,92860.0,0.28875262]
[1768863054052,0.010774,92874.0,92860.0,0.10769137]
[1768863054348,0.010774,92876.0,92860.0,0.28875262]
[1768863054658,0.010774,92874.0,92860.0,0.28875262]
[1768863056557,0.00990812,92879.0,92860.0,0.28875262]
[1768863056751,0.010774,92870.0,92860.0,0.10769137]
[1768863057057,0.010774,92873.0,92860.0,0.10769137]
[1768863057858,0.010774,92873.0,92860.0,0.28875262]
[1768863058158,0.010774,92872.0,92860.0,0.28875262]
[1768863058852,0.010774,92873.0,92860.0,0.28875262]
[1768863060663,0.010774,92873.0,92860.0,0.10769137]
[1768863060853,0.010774,92873.0,92860.0,0.28875262]
[1768863061351,0.010774,92873.0,92860.0,0.09859634]
[1768863061552,0.00990812,92879.0,92860.0,0.27965759]
[1768863061851,0.00931073,92878.0,92860.0,0.27965759]
[1768863062050,0.00931073,92878.0,92860.0,0.09859634]
[1768863062455,0.010774,92872.0,92860.0,0.09859634]
[1768863063157,0.010774,92872.0,92857.0,0.10653287]
[1768863063158,0.010775,92867.0,92857.0,0.09696]
[1768863063763,0.02008473,92869.0,92857.0,0.09696]
[1768863063961,0.00931073,92868.0,92857.0,0.09696]
[1768863064156,0.00931073,92868.0,92856.0,0.05813976]
[1768863065157,0.00931073,92868.0,92855.0,0.05813976]
[1768863065353,0.010775,92867.0,92855.0,0.05813976]
[1768863066065,0.02008573,92868.0,92855.0,0.05813976]
[1768863066857,0.010775,92867.0,92855.0,0.05813976]
[1768863067063,0.010775,92865.0,92855.0,0.05813976]
[1768863067359,0.010775,92863.0,92855.0,0.05813976]
[1768863067656,0.010775,92865.0,92855.0,0.05813976]
[1768863067861,0.00931073,92864.0,92850.0,0.09696]
[1768863068161,0.09769315,92866.0,92850.0,0.09696]
[1768863068367,0.010775,92864.0,92850.0,0.09696]
[1768863069168,0.010775,92861.0,92850.0,0.09696]
[1768863069667,0.10700388,92866.0,92850.0,0.09696]
[1768863069866,0.010775,92861.0,92850.0,0.09696]
[1768863070778,0.10700388,92866.0,92850.0,0.09696]
[1768863070779,0.00931073,92863.0,92850.0,0.09696]
[1768863071259,0.010776,92856.0,92849.0,0.00236945]
[1768863072170,0.010776,92855.0,92849.0,4.5e-07]
[1768863073872,0.010776,92854.0,92849.0,4.5e-07]
[1768863075370,0.10700388,92854.0,92841.0,0.09696]
[1768863075672,0.010777,92851.0,92841.0,0.09696]
[1768863075874,0.010777,92851.0,92834.0,0.21250698]
[1768863076874,0.10700388,92854.0,92834.0,0.21250698]
[1768863076875,0.010776,92852.0,92836.0,0.010778]
[1768863078076,0.010776,92852.0,92834.0,0.20172898]
[1768863078679,0.010777,92851.0,92834.0,0.20172898]
[1768863079372,0.010777,92851.0,92834.0,0.09696]
[1768863080277,0.010777,92851.0,92834.0,0.10653287]
[1768863081377,0.010777,92851.0,92835.0,0.00957287]
[1768863083672,0.010777,92851.0,92836.0,0.00941574]
[1768863084679,0.010777,92851.0,92835.0,0.09232433]
[1768863085478,0.010777,92851.0,92835.0,0.10174007]
[1768863085673,0.010777,92851.0,92836.0,0.00941574]
[1768863091181,0.010777,92850.0,92836.0,0.00941574]
[1768863092371,0.010777,92850.0,92834.0,0.09696]
[1768863092879,0.010777,92849.0,92834.0,0.09696]
[1768863093473,0.010777,92849.0,92834.0,0.10637574]
[1768863095481,0.010777,92847.0,92834.0,0.10637574]
[1768863096588,0.010777,92847.0,92835.0,0.00941574]
[1768863098288,0.010777,92846.0,92834.0,0.09696]
[1768863098483,0.010777,92844.0,92834.0,0.09696]
[1768863099080,0.010777,92844.0,92830.0,0.09232433]
[1768863099489,0.010777,92842.0,92830.0,0.09232433]
[1768863099688,0.010777,92842.0,92828.0,0.00941574]
[1768863100186,0.010777,92842.0,92827.0,0.07730213]
[1768863101384,0.010777,92844.0,92829.0,0.10075144]
[1768863105288,0.0999431,92849.0,92829.0,0.11153044]
[1768863105583,0.010777,92846.0,92831.0,0.010779]
[1768863105786,0.010777,92846.0,92829.0,0.10075144]
[1768863105987,0.010777,92844.0,92829.0,0.10075144]
[1768863106179,0.010777,92844.0,92829.0,0.1098297]
[1768863106379,0.010777,92844.0,92830.0,0.00907826]
[1768863109390,0.010777,92844.0,92829.0,0.00236996]
[1768863111992,0.010777,92843.0,92829.0,0.00236996]
[1768863112395,0.01978373,92843.0,92829.0,0.00236996]
[1768863112795,0.00900673,92842.0,92829.0,0.00236996]
[1768863113292,0.10682448,92843.0,92829.0,0.00236996]
[1768863113686,0.010778,92841.0,92829.0,0.00236996]
[1768863114297,0.010777,92843.0,92829.0,0.01314896]
[1768863114993,0.010777,92843.0,92829.0,0.00236996]
[1768863115994,0.00962622,92847.0,92829.0,0.00236996]
[1768863116298,0.010778,92838.0,92829.0,0.00236996]
[1768863116796,0.010778,92839.0,92829.0,0.00236996]
[1768863117399,0.010778,92842.0,92829.0,0.00236996]
[1768863117599,0.00962622,92846.0,92829.0,0.00236996]
[1768863118199,0.010778,92840.0,92829.0,0.00236996]
[1768863122805,0.02040322,92843.0,92829.0,0.00236996]
[1768863123397,0.010778,92840.0,92829.0,0.00236996]